bitfinex-derivatives/quotes_SOLF0:USTF0_20260218
["timestamp","ask_amount","ask_price","bid_price","bid_amount"]
[1771447177723,12.78068729,81.498,81.46,11.0532]
[1771447178427,23.82953137,81.497,81.46,11.0532]
[1771447178625,8.25687749,81.52,81.466,11.0524]
[1771447178929,12.78123137,81.519,81.466,11.0524]
[1771447179127,12.78123137,81.513,81.472,11.0516]
[1771447179323,12.78123137,81.513,81.44,8.25687749]
[1771447179521,12.78123137,81.513,81.441,77.28]
[1771447179720,12.78123137,81.513,81.475,11.0512]
[1771447183429,12.78123137,81.513,81.439,22.1123]
[1771447183631,12.78123137,81.513,81.44,77.28]
[1771447184234,12.82071408,81.495,81.43,8.25687749]
[1771447184744,12.82071408,81.495,81.43,85.55687749]
[1771447185642,12.76416421,81.511,81.434,22.1135]
[1771447185842,12.76416421,81.511,81.435,77.3]
[1771447186442,12.7608204,81.508,81.435,77.3]
[1771447186841,0.0777544,81.481,81.435,77.3]
[1771447187243,0.0777544,81.481,81.46,11.0532]
[1771447189941,0.0777544,81.481,81.46,14.13763597]
[1771447194947,12.70640312,81.507,81.466,11.0524]
[1771447196139,12.7064344,81.52,81.48,3.08443597]
[1771447196345,15.79087037,81.52,81.478,0.07861356]
[1771447196543,12.7064344,81.52,81.478,0.07861356]
[1771447197345,12.70740393,81.511,81.478,0.07861356]
[1771447200149,12.72812476,81.509,81.478,0.07861356]
[1771447200550,3.08443597,81.5,81.45,3.08443597]
[1771447200757,12.69575871,81.499,81.45,3.08443597]
[1771447200947,12.69575871,81.499,81.444,77.3]
[1771447200948,12.69575871,81.499,81.46,3.08443597]
[1771447201149,12.69575871,81.495,81.456,11.0538]
[1771447202052,0.07774628,81.484,81.456,11.0538]
[1771447205746,0.07774628,81.484,81.461,11.053]
[1771447205944,0.07774628,81.484,81.45,3.08443597]
[1771447207760,0.07774628,81.484,81.455,11.0539]
[1771447210563,12.69308777,81.484,81.45,3.08443597]
[1771447211762,12.69308777,81.484,81.452,11.0543]
[1771447213557,12.55991176,81.479,81.443,11.0555]
[1771447213963,12.55991176,81.479,81.44,3.08443597]
[1771447215264,0.07790933,81.468,81.44,3.08443597]
[1771447215657,0.07790933,81.468,81.449,11.0548]
[1771447215957,0.07790933,81.468,81.44,3.08443597]
[1771447216360,0.07790933,81.468,81.442,11.0556]
[1771447217662,0.07790933,81.468,81.448,11.0549]
[1771447218058,12.56579013,81.467,81.423,14.99596355]
[1771447218258,12.56579013,81.467,81.43,3.08443597]
[1771447219666,12.56579013,81.467,81.433,11.0569]
[1771447220966,12.56579013,81.467,81.439,11.0561]
[1771447224170,12.56579013,81.467,81.432,11.0571]
[1771447225559,36.86,81.52,81.45,3.08443597]
[1771447225764,3.08443597,81.5,81.451,0.10911885]
[1771447225966,3.08443597,81.49,81.451,0.10911885]
[1771447226164,3.08443597,81.49,81.441,0.10911885]
[1771447226772,11.0503,81.482,81.441,0.10911885]
[1771447227666,6.32505258,81.481,81.442,11.0557]
[1771447229874,6.32505258,81.481,81.449,11.0547]
[1771447230474,6.32505258,81.481,81.442,11.0556]
[1771447230775,6.32505258,81.481,81.443,0.1259051]
[1771447231272,6.32505258,81.481,81.445,11.0553]
[1771447237576,6.34992165,81.511,81.47,3.27208293]
[1771447237880,6.34992165,81.511,81.48,3.08443597]
[1771447239576,6.34992165,81.511,81.474,11.0513]
[1771447240272,0.0777647,81.501,81.474,11.0513]
[1771447240475,0.0777647,81.501,81.47,3.27208293]
[1771447241668,0.0777647,81.501,81.471,11.0517]
[1771447241873,0.0777647,81.501,81.47,3.27208293]
[1771447241874,6.41154143,81.501,81.45,3.08443597]
[1771447242075,3.08443597,81.5,81.454,77.32]
[1771447242274,6.33377673,81.499,81.454,77.32]
[1771447242674,6.33377673,81.499,81.462,11.0529]
[1771447243371,6.35581376,81.495,81.441,0.24485451]
[1771447243571,6.35584973,81.469,81.42,3.08443597]
[1771447243877,6.35584973,81.469,81.43,3.08443597]
[1771447244083,6.35584973,81.469,81.421,77.57594475]
[1771447244279,6.35584973,81.469,81.425,11.058]
[1771447245485,6.35584973,81.469,81.43,3.08443597]
[1771447245977,6.35584973,81.469,81.431,11.0572]
[1771447247774,6.41838792,81.467,81.422,0.25594475]
[1771447248786,11.0526,81.466,81.422,0.25594475]
[1771447248988,6.41838792,81.459,81.397,0.4543428]
[1771447249189,6.41838792,81.459,81.4,3.53877877]
[1771447249379,6.41838792,81.459,81.401,0.45437778]
[1771447249580,6.41838792,81.439,81.388,0.45437778]
[1771447250188,6.41838792,81.437,81.388,0.45437778]
[1771447250388,6.41838792,81.429,81.388,0.45437778]
[1771447250689,6.41838792,81.429,81.377,77.32]
[1771447250886,6.41838792,81.429,81.376,0.48450933]
[1771447251691,3.09031057,81.43,81.378,11.0644]
[1771447251692,6.41838792,81.427,81.378,11.0644]
[1771447254182,3.09031057,81.42,81.378,11.0644]
[1771447254387,6.41838792,81.419,81.378,11.0644]
[1771447254584,6.41838792,81.409,81.362,0.48878944]
[1771447254786,6.41838792,81.409,81.364,0.49848823]
[1771447255797,6.41838792,81.409,81.367,11.0658]
[1771447256695,6.41838792,81.407,81.36,3.09031057]
[1771447256890,6.41838792,81.407,81.356,77.36]
[1771447257097,6.41838792,81.405,81.356,0.60089629]
[1771447258096,0.07809069,81.389,81.356,0.60089629]
[1771447261197,6.2492557,81.359,81.318,0.65931003]
[1771447261398,6.2492557,81.359,81.294,262.67946039]
[1771447261399,6.2492557,81.373,81.33,3.09031057]
[1771447261592,22.1169,81.423,81.322,77.38]
[1771447261593,6.24921236,81.369,81.322,77.38]
[1771447262007,6.24921236,81.369,81.32,3.09031057]
[1771447262204,6.24921236,81.369,81.31,3.09031057]
[1771447262501,6.28207728,81.359,81.311,77.38]
[1771447262697,6.28207728,81.359,81.311,88.4534]
[1771447263507,6.28207728,81.359,81.32,3.09031057]
[1771447263707,6.28207728,81.359,81.312,0.61992771]
[1771447264206,6.28207728,81.359,81.321,11.0722]
[1771447265002,20.47348191,81.38,81.331,0.55473758]
[1771447265206,6.31887134,81.379,81.331,0.55473758]
[1771447265596,6.31887134,81.379,81.34,14.15991057]
[1771447265802,6.31887134,81.379,81.34,11.0696]
[1771447266106,6.31887134,81.379,81.34,14.15991057]
[1771447266610,6.31887134,81.379,81.34,11.0696]
[1771447267905,6.31887134,81.379,81.34,14.15991057]
[1771447270810,6.31887134,81.379,81.325,77.4]
[1771447271113,77.42,81.385,81.311,39.42903153]
[1771447271319,3.09031057,81.37,81.311,39.42903153]
[1771447272213,0.078075,81.349,81.311,39.42903153]
[1771447272615,0.078075,81.349,81.322,39.43881702]
[1771447274314,0.078075,81.349,81.324,11.0717]
[1771447274618,3.09031057,81.38,81.325,39.43105738]
[1771447274822,11.0653,81.372,81.33,11.0708]
[1771447275023,3.09031057,81.37,81.33,11.0708]
[1771447276720,3.09031057,81.37,81.325,39.43105738]
[1771447276912,3.09031057,81.36,81.313,39.40905952]
[1771447277514,3.09031057,81.37,81.313,39.40905952]
[1771447278520,11.0666,81.363,81.321,11.0722]
[1771447278818,11.0666,81.363,81.321,50.48594866]
[1771447279214,11.0666,81.363,81.322,39.41374866]
[1771447284218,11.0673,81.357,81.322,39.41374866]
[1771447285520,11.0673,81.357,81.31,3.09031057]
[1771447285521,11.0681,81.352,81.31,42.49819891]
[1771447285724,11.0681,81.352,81.31,39.40788834]
[1771447286918,11.0688,81.347,81.31,39.40788834]
[1771447287327,3.09031057,81.35,81.31,39.40788834]
[1771447287525,3.09031057,81.34,81.298,39.41671849]
[1771447288717,11.0699,81.338,81.298,39.41671849]
[1771447291022,11.0699,81.338,81.272,77.42]
[1771447291023,3.09031057,81.33,81.283,39.26132238]
[1771447292024,3.09031057,81.33,81.292,39.26046952]
[1771447292228,3.09031057,81.34,81.292,39.26046952]
[1771447293233,3.09031057,81.34,81.302,39.16298659]
[1771447294729,14.16001057,81.34,81.302,39.16298659]
[1771447295432,3.09031057,81.34,81.304,39.16098668]
[1771447296232,3.09031057,81.33,81.281,39.15979454]
[1771447297933,3.09031057,81.33,81.289,39.15753043]
[1771447299432,3.09031057,81.32,81.277,39.0661845]
[1771447300435,3.09031057,81.33,81.28,39.06471428]
[1771447301725,11.0717,81.325,81.281,11.0776]
[1771447302032,11.0717,81.325,81.282,39.04430429]
[1771447303732,11.0717,81.325,81.285,39.05086249]
[1771447303940,11.0724,81.32,81.285,39.05086249]
[1771447304440,14.16271057,81.32,81.285,39.05086249]
[1771447304938,11.0724,81.32,81.285,39.05086249]
[1771447308144,77.42,81.33,81.291,39.08074286]
[1771447308343,80.51031057,81.34,81.291,39.08074286]
[1771447309340,77.42,81.339,81.291,39.08074286]
[1771447309740,11.0703,81.335,81.293,39.0901785]
[1771447312343,11.0703,81.335,81.295,39.07888628]
[1771447313649,11.0703,81.335,81.268,77.42]
[1771447313650,11.0691,81.344,81.302,39.06862986]
[1771447314739,11.0691,81.344,81.305,39.03915456]
[1771447318546,3.09731568,81.34,81.305,39.03915456]
[1771447320349,77.42,81.353,81.292,39.14280664]
[1771447320548,3.09731568,81.34,81.292,39.14280664]
[1771447321444,3.09731568,81.34,81.3,39.13996781]
[1771447321652,77.42,81.353,81.3,42.23728349]
[1771447321944,77.42,81.353,81.284,22.1544]
[1771447321945,3.09731568,81.37,81.311,39.13996781]
[1771447322150,77.42,81.369,81.321,39.13996781]
[1771447322339,11.0651,81.373,81.331,39.13996781]
[1771447326341,77.42,81.379,81.333,39.1843915]
[1771447327449,11.0646,81.377,81.333,39.1843915]
[1771447327644,77.42,81.379,81.333,39.1843915]
[1771447328453,77.42,81.379,81.348,0.07763004]
[1771447328754,11.0654,81.371,81.348,0.07763004]
[1771447334157,88.4844,81.379,81.348,0.07763004]
[1771447334455,77.42,81.378,81.348,0.07763004]
[1771447334854,11.0636,81.384,81.348,39.36592278]
[1771447335251,3.09731568,81.38,81.348,39.36592278]
[1771447335447,3.09731568,81.38,81.348,39.28829274]
[1771447335854,11.0647,81.377,81.348,39.28829274]
[1771447336061,3.09731568,81.38,81.337,39.28777177]
[1771447336358,77.42,81.379,81.337,39.28777177]
[1771447336754,11.0654,81.372,81.337,39.28777177]
[1771447337057,3.09731568,81.37,81.337,39.28777177]
[1771447338459,3.09731568,81.37,81.345,0.0776793]
[1771447340056,3.09731568,81.38,81.346,39.27555329]
[1771447340256,77.42,81.379,81.346,39.27555329]
[1771447341664,11.0663,81.365,81.346,19.93132389]
[1771447341871,11.0663,81.365,81.32,14.16961568]
[1771447343360,11.0669,81.36,81.32,14.16961568]
[1771447343866,11.0669,81.36,81.321,29.69826879]
[1771447349168,11.0659,81.367,81.331,29.70029574]
[1771447349373,3.09731568,81.4,81.341,29.70029574]
[1771447349667,11.0643,81.38,81.342,29.70009725]
[1771447350164,3.09731568,81.4,81.351,29.70009725]
[1771447350768,14.15881568,81.4,81.351,29.70009725]
[1771447352456,11.0623,81.394,81.352,29.67334007]
[1771447353370,3.09731568,81.4,81.355,11.0675]
[1771447353568,3.09731568,81.4,81.356,29.67309801]
[1771447354670,11.0616,81.399,81.356,29.67309801]
[1771447357173,11.0607,81.406,81.361,29.67667648]
[1771447357374,3.09731568,81.42,81.371,29.67667648]
[1771447357577,3.09731568,81.41,81.371,29.67667648]
[1771447357774,11.0603,81.409,81.371,29.67667648]
[1771447362076,11.0594,81.416,81.372,29.67257745]
[1771447364983,11.0594,81.416,81.381,29.65925255]
[1771447365373,11.06,81.411,81.381,29.65925255]
[1771447367577,11.0602,81.41,81.381,29.65925255]
[1771447368871,3.09731568,81.42,81.381,29.65925255]
[1771447368872,14.15611568,81.42,81.381,29.65925255]
[1771447369574,11.0588,81.42,81.381,29.65925255]
[1771447371281,11.058,81.426,81.381,29.65925255]
[1771447372680,11.058,81.426,81.385,29.65324692]
[1771447373683,11.058,81.426,81.387,29.65303323]
[1771447375484,22.1067,81.46,81.39,32.77563788]
[1771447375485,80.49061776,81.44,81.39,32.77563788]
[1771447375880,3.09061776,81.44,81.39,32.77563788]
[1771447376075,77.4,81.443,81.39,32.77563788]
[1771447376775,77.4,81.443,81.4,29.69086515]
[1771447376986,77.4,81.443,81.4,32.78148291]
[1771447377181,3.09061776,81.44,81.4,29.69086515]
[1771447377689,77.4,81.454,81.4,32.78148291]
[1771447377886,3.09061776,81.46,81.411,29.69071709]
[1771447378682,77.4,81.462,81.411,29.69071709]
[1771447379681,77.4,81.462,81.417,11.059]
[1771447379884,77.4,81.462,81.418,29.61028579]
[1771447381498,11.0526,81.466,81.421,29.57033972]
[1771447381689,11.0526,81.466,81.423,29.5700378]
[1771447382400,3.09061776,81.46,81.423,29.5700378]
[1771447384591,3.09061776,81.47,81.423,29.5700378]
[1771447385291,3.09061776,81.47,81.425,11.058]
[1771447385497,3.09061776,81.47,81.426,29.54262302]
[1771447386801,3.09061776,81.47,81.429,29.4685434]
[1771447387204,3.09061776,81.48,81.439,29.4685434]
[1771447387503,11.0496,81.487,81.439,29.4685434]
[1771447388301,3.09061776,81.49,81.448,29.46813726]
[1771447389695,3.09061776,81.49,81.396,12.29]
[1771447389696,3.09061776,81.5,81.451,29.43314777]
[1771447390805,3.09061776,81.5,81.454,29.44358165]
[1771447391703,3.09061776,81.5,81.456,29.4431662]
[1771447392206,11.0481,81.499,81.456,29.4431662]
[1771447393701,11.0491,81.492,81.456,29.4431662]
[1771447393898,3.09061776,81.48,81.44,29.47806005]
[1771447394403,11.0511,81.477,81.44,29.47806005]
[1771447399208,3.09061776,81.48,81.44,29.47806005]
[1771447401303,3.09061776,81.48,81.442,29.37634809]
[1771447407915,11.0509,81.478,81.442,29.37634809]
[1771447408810,3.09061776,81.48,81.445,29.45284512]
[1771447411224,3.09061776,81.48,81.444,11.0553]
[1771447411225,11.0526,81.466,81.434,29.53867255]
[1771447411417,77.34,81.475,81.434,29.53867255]
[1771447411622,3.09061776,81.48,81.434,29.53867255]
[1771447411819,11.051,81.477,81.438,29.53843992]
[1771447413413,11.0499,81.485,81.441,29.59654619]
[1771447413618,22.0914,81.517,81.441,29.59654619]
[1771447413619,3.09061776,81.5,81.441,29.59654619]
[1771447414017,3.09061776,81.49,81.441,29.59654619]
[1771447414418,11.0495,81.489,81.445,29.5965439]
[1771447414622,3.09061776,81.48,81.445,29.5965439]
[1771447415024,3.09061776,81.49,81.445,29.5965439]
[1771447416725,11.0496,81.488,81.447,29.59145401]
[1771447417727,11.0504,81.482,81.447,29.59145401]
[1771447418628,3.09061776,81.49,81.447,29.59145401]
[1771447418629,11.0494,81.489,81.447,29.59145401]
[1771447419134,9.08250203,81.526,81.464,1.01635558]
[1771447419325,11.0456,81.517,81.471,1.01635558]
[1771447420232,20.12980899,81.511,81.471,1.01635558]
[1771447420433,20.12980899,81.511,81.46,3.09061776]
[1771447420434,9.08330899,81.509,81.46,1.08973403]
[1771447421322,9.08330899,81.509,81.46,4.18035179]
[1771447421534,9.08330899,81.509,81.461,1.06992607]
[1771447422328,11.0479,81.5,81.461,1.06992607]
[1771447426536,23.56697172,81.5,81.461,1.06992607]
[1771447426736,9.42845396,81.499,81.461,1.06992607]
[1771447427334,9.42845396,81.496,81.461,1.06992607]
[1771447427828,9.42845396,81.491,81.45,1.80566828]
[1771447428026,9.42845396,81.489,81.45,1.80566828]
[1771447429536,9.42845396,81.489,81.458,11.0534]
[1771447434141,9.42845396,81.489,81.453,2.23062277]
[1771447436754,9.42845396,81.489,81.457,2.06307732]
[1771447437655,9.42845396,81.489,81.458,11.0536]
[1771447439451,9.42845396,81.489,81.458,2.22419476]
[1771447440046,9.42845396,81.489,81.452,11.0543]
[1771447440450,9.58815866,81.487,81.452,11.0543]
[1771447442157,9.58815866,81.485,81.452,11.0543]
[1771447442555,9.58815866,81.479,81.445,11.0553]
[1771447443459,9.58815866,81.479,81.451,11.0544]
[1771447443853,9.58815866,81.479,81.445,2.44883416]
[1771447444454,9.58815866,81.479,81.45,11.0545]
[1771447446757,3.0855034,81.47,81.421,9.2687793]
[1771447447063,9.58815866,81.489,81.451,9.2687793]
[1771447447762,9.58815866,81.489,81.453,11.0542]
[1771447453261,9.58815866,81.489,81.451,9.2687793]
[1771447454067,9.58815866,81.489,81.451,20.3231793]
[1771447454870,9.58815866,81.489,81.452,10.72285417]
[1771447456374,10.33224777,81.48,81.438,10.72285417]
[1771447456667,13.41775117,81.48,81.438,10.72285417]
[1771447456869,11.049,81.492,81.452,10.72285417]
[1771447459073,10.33224777,81.494,81.459,10.72285417]
[1771447461376,10.33224777,81.509,81.461,10.72285417]
[1771447461568,10.33224777,81.507,81.461,10.72285417]
[1771447462667,21.37924777,81.507,81.462,11.053]
[1771447462868,21.37924777,81.507,81.463,10.72285417]
[1771447463079,21.37924777,81.507,81.47,3.0855034]
[1771447463272,21.37924777,81.507,81.47,13.80835757]
[1771447463474,10.33224777,81.507,81.471,10.72285417]
[1771447468082,10.33224777,81.507,81.473,10.72285417]
[1771447469777,11.0459,81.515,81.473,10.72285417]
[1771447470581,11.0459,81.515,81.481,10.72285417]
[1771447472778,10.33224777,81.518,81.481,10.72285417]
[1771447473779,10.33224777,81.518,81.469,10.72285417]
[1771447473973,10.33224777,81.518,81.471,10.72285417]
[1771447474676,10.33224777,81.518,81.481,10.72285417]
[1771447475883,10.33224777,81.518,81.484,11.05]
[1771447478785,10.33224777,81.518,81.481,10.72285417]
[1771447482978,10.33224777,81.518,81.484,10.72285417]
[1771447489693,10.71327944,81.514,81.474,10.64215403]
[1771447489992,10.71327944,81.514,81.47,11.0519]
[1771447490496,10.71327944,81.514,81.47,21.69405403]
[1771447490789,10.71327944,81.51,81.47,21.69405403]
[1771447491385,10.71327944,81.508,81.47,10.64215403]
[1771447491790,10.71327944,81.508,81.46,13.72765743]
[1771447491984,10.71327944,81.508,81.461,10.64215403]
[1771447492485,21.76187944,81.495,81.461,10.64215403]
[1771447492686,10.71327944,81.494,81.461,10.64215403]
[1771447495284,10.71327944,81.483,81.44,3.0855034]
[1771447495582,10.71327944,81.483,81.403,22.1219]
[1771447495583,3.0855034,81.47,81.437,10.64215403]
[1771447495784,10.71327944,81.475,81.437,10.64215403]
[1771447495989,10.71327944,81.489,81.437,10.64215403]
[1771447496600,11.051,81.478,81.437,10.64215403]
[1771447496790,10.71327944,81.477,81.437,10.64215403]
[1771447497293,10.71327944,81.474,81.437,10.64215403]
[1771447500494,11.0516,81.473,81.437,10.64215403]
[1771447500698,11.68981391,81.469,81.426,10.99506041]
[1771447501698,11.0526,81.466,81.426,10.99506041]
[1771447501899,11.68981391,81.465,81.426,10.99506041]
[1771447504498,3.08636657,81.46,81.426,10.99506041]
[1771447504704,11.68981391,81.465,81.426,10.99506041]
[1771447505100,3.08636657,81.45,81.408,10.99506041]
[1771447505307,3.08636657,81.44,81.408,10.99506041]
[1771447505994,3.08636657,81.44,81.39,3.08636657]
[1771447505995,11.68981391,81.439,81.39,3.08636657]
[1771447506195,3.08636657,81.43,81.391,10.99506041]
[1771447506399,11.68981391,81.429,81.391,10.99506041]
[1771447507400,11.68981391,81.429,81.38,14.08142698]
[1771447508102,11.68981391,81.427,81.382,11.0639]
[1771447509008,11.68981391,81.427,81.389,11.0629]
[1771447509906,3.08636657,81.42,81.389,11.0629]
[1771447510406,14.77618048,81.42,81.389,11.0629]
[1771447510603,3.08636657,81.41,81.367,10.99506041]
[1771447510905,11.68981391,81.419,81.367,10.99506041]
[1771447511702,11.68981391,81.419,81.373,11.0651]
[1771447512006,3.08636657,81.41,81.373,22.06016041]
[1771447512311,3.08636657,81.41,81.374,10.99506041]
[1771447513411,3.08636657,81.41,81.376,11.0646]
[1771447514716,14.77618048,81.41,81.376,11.0646]
[1771447515610,12.00476875,81.409,81.376,11.0646]
[1771447516000,77.34,81.443,81.347,77.34]
[1771447516001,3.08636657,81.43,81.381,11.97860285]
[1771447516801,3.08636657,81.42,81.381,11.97860285]
[1771447517206,3.08636657,81.42,81.37,3.08636657]
[1771447517207,36.86,81.472,81.39,11.97860285]
[1771447517418,3.08636657,81.44,81.391,11.97860285]
[1771447517615,3.08636657,81.45,81.401,11.97860285]
[1771447518015,12.00476875,81.46,81.413,11.97860285]
[1771447518215,15.09113532,81.46,81.413,11.97860285]
[1771447518611,12.00476875,81.459,81.413,11.97860285]
[1771447519214,3.08636657,81.45,81.413,11.97860285]
[1771447520312,12.00476875,81.459,81.415,11.97860285]
[1771447523420,12.00476875,81.455,81.403,11.97860285]
[1771447524515,12.00476875,81.455,81.411,11.97860285]
[1771447524819,11.0543,81.453,81.411,11.97860285]
[1771447525721,11.0552,81.447,81.411,11.97860285]
[1771447527817,12.00476875,81.446,81.411,11.97860285]
[1771447528322,11.0556,81.444,81.402,11.97860285]
[1771447528525,12.00476875,81.446,81.402,11.97860285]
[1771447529017,12.00476875,81.446,81.405,11.0607]
[1771447529322,12.00476875,81.446,81.406,11.97860285]
[1771447530324,12.00476875,81.446,81.408,11.0602]
[1771447530516,12.00476875,81.446,81.408,23.03880285]
[1771447530711,12.00476875,81.446,81.409,11.97860285]
[1771447530916,11.0536,81.458,81.412,11.97860285]
[1771447531522,23.05836875,81.458,81.412,11.97860285]
[1771447531714,23.05836875,81.458,81.413,11.0597]
[1771447531910,11.0544,81.452,81.412,11.97860285]
[1771447532314,12.00476875,81.458,81.412,11.97860285]
[1771447532315,12.00476875,81.458,81.414,11.0594]
[1771447532524,12.00476875,81.458,81.415,11.97860285]
[1771447532725,3.08636657,81.47,81.415,11.97860285]
[1771447532919,15.2491538,81.518,81.377,22.129]
[1771447532920,12.00476875,81.482,81.431,11.97860285]
[1771447533324,11.0515,81.474,81.431,11.97860285]
[1771447534017,12.00476875,81.467,81.42,3.08636657]
[1771447534228,12.00476875,81.467,81.421,11.97860285]
[1771447535221,11.0516,81.473,81.431,11.97860285]
[1771447537217,15.09113532,81.49,81.441,11.97860285]
[1771447537418,12.00476875,81.489,81.441,11.97860285]
[1771447538726,11.0503,81.483,81.441,11.97860285]
[1771447539428,12.00476875,81.489,81.45,3.08636657]
[1771447539726,12.00476875,81.502,81.451,11.97860285]
[1771447540121,11.0483,81.497,81.451,11.97860285]
[1771447541830,12.00476875,81.502,81.46,3.08636657]
[1771447542025,12.00476875,81.516,81.48,3.08636657]
[1771447542623,11.0447,81.524,81.481,11.97860285]
[1771447543429,12.00476875,81.519,81.481,11.97860285]
[1771447545724,12.00476875,81.519,81.482,11.85266043]
[1771447549839,12.23463765,81.528,81.482,11.85266043]
[1771447550235,12.23463765,81.528,81.475,11.0511]
[1771447550236,12.23463765,81.519,81.475,22.90376043]
[1771447550431,12.23463765,81.519,81.476,11.85266043]
[1771447550631,12.23463765,81.513,81.476,11.85266043]
[1771447551944,12.23463765,81.513,81.48,3.08636657]
[1771447552334,12.23463765,81.508,81.464,11.85266043]
[1771447552534,12.23463765,81.508,81.471,11.85266043]
[1771447552940,12.23463765,81.519,81.471,11.85266043]
[1771447553734,11.0456,81.517,81.473,11.85266043]
[1771447553939,12.23463765,81.519,81.473,11.85266043]
[1771447555840,11.0472,81.505,81.473,11.85266043]
[1771447557232,11.0462,81.513,81.473,11.85266043]
[1771447557433,12.23463765,81.512,81.473,11.85266043]
[1771447559337,11.60009613,81.51,81.473,11.85266043]
[1771447560137,11.0466,81.509,81.473,11.85266043]
[1771447560343,22.64669613,81.509,81.473,11.85266043]
[1771447560548,22.64669613,81.509,81.411,59.51143579]
[1771447560549,11.60009613,81.484,81.438,12.24877192]
[1771447560838,11.60009613,81.509,81.461,12.24877192]
[1771447561045,11.0488,81.493,81.461,12.24877192]
[1771447561247,11.60009613,81.489,81.448,12.24877192]
[1771447561739,11.60009613,81.479,81.436,12.24877192]
[1771447562640,11.60009613,81.479,81.438,11.0562]
[1771447565841,11.60009613,81.478,81.436,12.24877192]
[1771447566346,3.08376021,81.51,81.461,12.24877192]
[1771447566548,11.60009613,81.519,81.471,12.24877192]
[1771447566850,3.08376021,81.51,81.471,12.24877192]
[1771447570048,11.60009613,81.511,81.471,12.24877192]
[1771447570344,11.60009613,81.509,81.465,11.0526]
[1771447570641,11.60009613,81.534,81.478,12.24877192]
[1771447570838,3.08376021,81.52,81.478,12.24877192]
[1771447572443,22.64469613,81.524,81.478,12.24877192]
[1771447572749,3.08376021,81.52,81.478,12.24877192]
[1771447573246,22.64469613,81.524,81.478,12.24877192]
[1771447575044,11.0453,81.52,81.478,12.24877192]
[1771447576853,14.12906021,81.52,81.478,12.24877192]
[1771447578058,11.0453,81.52,81.478,12.24877192]
[1771447580354,11.0453,81.52,81.48,12.44131801]
[1771447583454,11.046,81.514,81.48,12.44131801]
[1771447588661,15.36539967,81.52,81.48,12.44131801]
[1771447588862,12.28163946,81.52,81.48,12.44131801]
[1771447589762,11.0453,81.519,81.48,12.44131801]
[1771447590266,11.0441,81.528,81.486,12.44131801]
[1771447590858,12.28163946,81.53,81.486,12.44131801]
[1771447591060,11.0449,81.522,81.486,12.44131801]
[1771447591456,12.28163946,81.529,81.486,12.44131801]
[1771447592363,12.28163946,81.517,81.476,23.49231801]
[1771447592866,11.0458,81.515,81.476,23.49231801]
[1771447593567,23.32743946,81.515,81.476,23.49231801]
[1771447594968,12.28163946,81.514,81.477,12.44131801]
[1771447595267,12.28163946,81.505,81.45,3.08376021]
[1771447595458,12.28163946,81.499,81.451,12.44131801]
[1771447596566,3.08376021,81.49,81.451,12.44131801]
[1771447596770,3.08376021,81.49,81.458,11.0534]
[1771447597065,12.28163946,81.489,81.451,12.44131801]
[1771447597269,3.08376021,81.48,81.451,12.44131801]
[1771447597964,12.28163946,81.479,81.437,23.49771801]
[1771447598761,3.08376021,81.47,81.437,23.49771801]
[1771447598964,12.28163946,81.479,81.437,23.49771801]
[1771447600170,3.08376021,81.47,81.437,23.49771801]
[1771447600366,12.28163946,81.479,81.437,23.49771801]
[1771447600767,12.28163946,81.469,81.429,11.0575]
[1771447600967,12.28163946,81.469,81.429,23.49881801]
[1771447601167,12.28163946,81.469,81.43,12.44131801]
[1771447601964,12.28163946,81.469,81.432,12.44131801]
[1771447602165,12.28163946,81.484,81.441,12.44131801]
[1771447602368,3.08376021,81.49,81.441,12.44131801]
[1771447603772,3.08376021,81.49,81.447,12.44131801]
[1771447605080,11.0497,81.487,81.447,12.44131801]
[1771447605278,3.08376021,81.48,81.447,12.44131801]
[1771447605470,12.28163946,81.496,81.447,12.44131801]
[1771447605670,3.08376021,81.49,81.447,12.44131801]
[1771447606278,3.08376021,81.49,81.448,11.0549]
[1771447606481,3.08376021,81.49,81.449,11.82930625]
[1771447607671,12.28163946,81.496,81.454,11.82930625]
[1771447608978,3.08376021,81.5,81.454,11.82930625]
[1771447610180,3.08376021,81.49,81.454,11.82930625]
[1771447612681,23.30062841,81.489,81.454,11.82930625]
[1771447613282,12.25122841,81.488,81.449,11.0547]
[1771447613683,23.30112841,81.485,81.443,11.82930625]
[1771447614785,23.30112841,81.485,81.445,11.82930625]
[1771447615190,11.0507,81.48,81.445,11.82930625]
[1771447615391,12.25122841,81.485,81.445,11.82930625]
[1771447616290,12.25122841,81.485,81.448,11.0549]
[1771447616495,12.25122841,81.479,81.445,11.82930625]
[1771447617295,3.08376021,81.47,81.437,11.82930625]
[1771447617795,3.08376021,81.47,81.438,11.0562]
[1771447617996,3.08728329,81.47,81.438,23.63226032]
[1771447618891,12.25122841,81.477,81.438,23.63226032]